fUST/lending_fUST_20251123
["ID","MTS","AMOUNT","RATE_DAILY","PERIOD"]
[394692816,1763902233048,-809.39636535,0.00010332,2]
[394692817,1763902233063,-183.354,0.00010443,2]
[394692818,1763902233072,-500.0,0.00010547,2]
[394692819,1763902233081,-402.399895,0.0001056,2]
[394692820,1763902233091,-1219.1465864,0.0001056,2]
[394692821,1763902233100,-156.4986416,0.0001056,2]
[394692822,1763902233109,-468.5331091,0.0001056,2]
[394692823,1763902233118,-250.0,0.0001066,2]
[394692824,1763902233127,-250.0,0.0001066,2]
[394692825,1763902233137,-250.0,0.0001066,2]
[394692826,1763902233146,-250.0,0.0001066,2]
[394692827,1763902233155,-250.0,0.0001066,2]
[394692828,1763902233165,-250.0,0.0001066,2]
[394692829,1763902233174,-500.0,0.0001066,2]
[394692830,1763902233186,-250.0,0.0001066,2]
[394692831,1763902233195,-500.0,0.0001066,2]
[394692832,1763902233205,-500.0,0.0001066,2]
[394692833,1763902233214,-500.0,0.0001066,2]
[394692834,1763902233224,-500.0,0.0001066,2]
[394692835,1763902233233,-500.0,0.0001066,2]
[394692836,1763902233242,-500.0,0.0001066,2]
[394692837,1763902233252,-209.96509319,0.0001066,2]
[394692838,1763902233265,-187.78006525,0.0001066,2]
[394692839,1763902233274,-1344.106632,0.00010663,2]
[394692840,1763902233283,-180.14750225,0.00010665,2]
[394692841,1763902233294,-602.86886866,0.00010665,2]
[394692842,1763902233303,-515.1688814,0.00010665,2]
[394692843,1763902233313,-515.1688814,0.00010665,2]
[394692844,1763902233322,-515.1688814,0.00010665,2]
[394692845,1763902233331,-515.1688814,0.00010665,2]
[394692846,1763902233341,-515.1688814,0.00010665,2]
[394692847,1763902233350,-515.1688814,0.00010665,2]
[394692848,1763902233360,-563.95018632,0.00010666,2]
[394692853,1763902238302,-734.27899319,9.996e-05,2]
[394692856,1763902238363,-30855.65409577,9.996e-05,2]
[394692857,1763902238379,-302.0,9.996e-05,2]
[394692858,1763902239816,-8746.73238063,9.996e-05,2]
[394692923,1763902240542,-254.01130894,9.996e-05,2]
[394692924,1763902240553,-9107.32322147,9.996e-05,2]
[394692925,1763902240563,-602.06571311,9.998e-05,2]
[394692926,1763902240574,-500.0,9.998e-05,2]
[394692927,1763902240583,-500.0,9.998e-05,2]
[394692928,1763902240593,-500.0,9.998e-05,2]
[394692929,1763902240602,-500.0,9.998e-05,2]
[394692930,1763902240611,-500.0,9.998e-05,2]
[394692931,1763902240621,-500.0,9.998e-05,2]
[394692932,1763902240630,-500.0,9.998e-05,2]
[394692933,1763902240640,-500.0,9.998e-05,2]
[394692934,1763902240650,-500.0,9.998e-05,2]
[394692935,1763902240660,-500.0,9.998e-05,2]
[394692936,1763902240670,-408.91627579,9.998e-05,2]
[394692937,1763902240679,-500.0,9.998e-05,2]
[394692938,1763902240688,-500.0,9.998e-05,2]
[394692939,1763902240698,-500.0,9.998e-05,2]
[394692940,1763902240708,-515.1688814,0.00010665,2]
[394692941,1763902240717,-515.1688814,0.00010665,2]
[394692942,1763902240727,-515.1688814,0.00010665,2]
[394692943,1763902240737,-515.1688814,0.00010665,2]
[394692944,1763902240747,-515.1688814,0.00010665,2]
[394692945,1763902240757,-515.1688814,0.00010665,2]
[394692946,1763902240778,-515.1688814,0.00010665,2]
[394692947,1763902240790,-515.1688814,0.00010665,2]
[394692948,1763902240800,-515.1688814,0.00010665,2]
[394692949,1763902240809,-515.1688814,0.00010665,2]
[394692950,1763902240818,-515.1688814,0.00010665,2]
[394692951,1763902240828,-59346.83709424,0.00010666,2]
[394693014,1763902246765,-500.0,9.998e-05,2]
[394693015,1763902246774,-2599.83832066,0.00010666,2]
[394693016,1763902246785,-707.121888,0.00010666,2]
[394693017,1763902246797,-35941.72514425,0.00010666,2]
[394693018,1763902246808,-529.99999998,0.00010666,2]
[394693099,1763902515711,633.0,0.0002,30]
[394693100,1763902545961,333.0,0.0002,30]
[394693200,1763902957517,151.763895,0.0001333,9]
[394693201,1763902957805,151.763895,0.0001333,9]
[394693202,1763902958109,151.763895,0.0001333,9]
[394693204,1763903053739,402.0,0.000201,120]
[394693205,1763903168493,320.0,0.000201,120]
[394693206,1763903225097,-1213.14717994,8.46e-05,2]
[394693207,1763903225121,-1213.14717994,8.545e-05,2]
[394693208,1763903225143,-159.81541735,8.588e-05,2]
[394693209,1763903225164,-300.0,8.893e-05,2]
[394693210,1763903225184,-1200.0,8.893e-05,2]
[394693211,1763903225207,-300.0,8.893e-05,2]
[394693212,1763903225230,-50000.0,8.894e-05,2]
[394693213,1763903225252,-500.0,8.894e-05,2]
[394693214,1763903225278,-500.0,8.894e-05,2]
[394693215,1763903225299,-282.99225828,8.894e-05,2]
[394693216,1763903225324,-500.0,8.894e-05,2]
[394693217,1763903225344,-500.0,8.894e-05,2]
[394693218,1763903225371,-500.0,8.894e-05,2]
[394693219,1763903225395,-500.0,8.894e-05,2]
[394693220,1763903225421,-500.0,8.894e-05,2]
[394693221,1763903225447,-500.0,8.894e-05,2]
[394693222,1763903225471,-274.84605328,8.894e-05,2]
[394693223,1763903225496,-500.0,8.894e-05,2]
[394693224,1763903225520,-500.0,8.894e-05,2]
[394693225,1763903225540,-506.25942948,8.895e-05,2]
[394693226,1763903225563,-500.0,8.895e-05,2]
[394693227,1763903225590,-500.0,8.895e-05,2]
[394693228,1763903225611,-500.0,8.895e-05,2]
[394693229,1763903225632,-500.0,8.895e-05,2]
[394693230,1763903225651,-500.0,8.895e-05,2]
[394693231,1763903225671,-500.0,8.895e-05,2]
[394693232,1763903225693,-500.0,8.895e-05,2]
[394693233,1763903225717,-500.0,8.895e-05,2]
[394693234,1763903225742,-500.0,8.895e-05,2]
[394693235,1763903225770,-500.0,8.895e-05,2]
[394693236,1763903225794,-500.0,8.895e-05,2]
[394693237,1763903225822,-500.0,8.895e-05,2]
[394693238,1763903225850,-500.0,8.895e-05,2]
[394693239,1763903225876,-500.0,8.895e-05,2]
[394693240,1763903225902,-500.0,8.895e-05,2]
[394693241,1763903225933,-500.0,8.895e-05,2]
[394693242,1763903225959,-500.0,8.895e-05,2]
[394693243,1763903225985,-500.0,8.895e-05,2]
[394693244,1763903226010,-448.31154403,8.895e-05,2]
[394693245,1763903226033,-500.0,8.895e-05,2]
[394693246,1763903226055,-500.0,8.895e-05,2]
[394693247,1763903226078,-300.0,8.895e-05,2]
[394693248,1763903226099,-183.354,8.895e-05,2]
[394693249,1763903226119,-27935.4728183,8.896e-05,2]
[394693250,1763903226140,-1680.0,9.782e-05,2]
[394693251,1763903226161,-420.0,9.782e-05,2]
[394693252,1763903226185,-500.0,9.873e-05,2]
[394693253,1763903226206,-646.44412713,9.873e-05,2]
[394693254,1763903226226,-500.0,9.873e-05,2]
[394693255,1763903226247,-500.0,9.873e-05,2]
[394693256,1763903226268,-500.0,9.873e-05,2]
[394693257,1763903226290,-500.0,9.873e-05,2]
[394693258,1763903226310,-500.0,9.873e-05,2]
[394693259,1763903226330,-357.92254376,9.873e-05,2]
[394693260,1763903226351,-500.0,9.873e-05,2]
[394693261,1763903226371,-392.02242397,9.873e-05,2]
[394693262,1763903226574,-500.0,9.873e-05,2]
[394693263,1763903226595,-500.0,9.873e-05,2]
[394693264,1763903226615,-500.0,9.873e-05,2]
[394693265,1763903226636,-500.0,9.873e-05,2]
[394693266,1763903226656,-441.06903221,9.876e-05,2]
[394693267,1763903226681,-50615.54132928,9.898e-05,2]
[394693268,1763903226917,-155.19590365,9.898e-05,2]
[394693478,1763903432495,-1054.0,8.706e-05,2]
[394693479,1763903432506,-300.0,8.794e-05,2]
[394693480,1763903432515,-754.0,8.794e-05,2]
[394693481,1763903432527,-57947.06429746,8.795e-05,2]
[394693482,1763903432538,-1326.0,8.795e-05,2]
[394693483,1763903432549,-45845.82732344,8.795e-05,2]
[394693484,1763903432576,-1247.14197923,8.795e-05,2]
[394693494,1763903438468,-1427.7843409,8.795e-05,2]
[394693495,1763903438480,-944.52741498,8.795e-05,2]
[394693496,1763903438527,-6933.67109851,8.795e-05,2]
[394693497,1763903438542,-270886.71121031,8.795e-05,2]
[394693498,1763903438555,-554.58286843,8.795e-05,2]
[394693499,1763903438566,-1117.91553916,8.795e-05,2]
[394693500,1763903438577,-1382.8095471,8.795e-05,2]
[394693501,1763903438588,-15619.73589633,8.795e-05,2]
[394693502,1763903438599,-4897.25569245,8.795e-05,2]
[394693503,1763903438610,-74249.33543285,8.795e-05,2]
[394693509,1763903440624,-272.33990001,8.795e-05,2]
[394693510,1763903440682,-17331.97181604,8.795e-05,2]
[394693523,1763903447243,-300.0,8.707e-05,2]
[394693524,1763903447254,-17407.81614855,8.795e-05,2]
[394693578,1763903868758,163.87,0.00018328,30]
[394693579,1763903869155,327.73,0.00019994,30]
[394693580,1763904020989,161.19,0.00019343,30]
[394693581,1763904103724,160.31,0.00017518,30]
[394693582,1763904104695,320.61,0.00019111,30]
[394693584,1763904182585,157.68,0.00019299,30]
[394693649,1763904262401,156.82,0.00019196,30]
[394693650,1763904333139,-300.0,7.955e-05,2]
[394693651,1763904333163,-156.619109,7.995e-05,2]
[394693652,1763904333187,-300.0,8.035e-05,2]
[394693653,1763904333209,-300.0,8.792e-05,2]
[394693654,1763904333230,-300.0,8.792e-05,2]
[394693655,1763904333260,-500.0,8.793e-05,2]
[394693656,1763904333511,-442.68703157,8.793e-05,2]
[394693657,1763904333535,-300.0,8.793e-05,2]
[394693658,1763904333557,-1200.0,8.793e-05,2]
[394693659,1763904333578,-50000.0,8.794e-05,2]
[394693660,1763904333599,-500.0,8.794e-05,2]
[394693661,1763904333621,-500.0,8.794e-05,2]
[394693662,1763904333642,-354.38160064,8.794e-05,2]
[394693663,1763904333664,-500.0,8.794e-05,2]
[394693664,1763904333685,-500.0,8.794e-05,2]
[394693665,1763904333705,-500.0,8.794e-05,2]
[394693666,1763904333727,-500.0,8.794e-05,2]
[394693667,1763904333748,-500.0,8.794e-05,2]
[394693668,1763904333770,-500.0,8.794e-05,2]
[394693669,1763904333793,-500.0,8.794e-05,2]
[394693670,1763904333814,-500.0,8.794e-05,2]
[394693671,1763904333835,-500.0,8.794e-05,2]
[394693672,1763904333856,-500.0,8.794e-05,2]
[394693673,1763904333879,-500.0,8.794e-05,2]
[394693674,1763904333901,-410.69998502,8.794e-05,2]
[394693675,1763904333922,-500.0,8.794e-05,2]
[394693676,1763904333943,-410.77259442,8.794e-05,2]
[394693677,1763904333968,-500.0,8.794e-05,2]
[394693678,1763904333990,-500.0,8.794e-05,2]
[394693679,1763904334013,-500.0,8.794e-05,2]
[394693680,1763904334036,-500.0,8.794e-05,2]
[394693681,1763904334061,-500.0,8.794e-05,2]
[394693682,1763904334084,-539.46552355,8.794e-05,2]
[394693683,1763904334108,-102961.3751728,8.795e-05,2]
[394693694,1763904402085,-168.19308826,8.619e-05,2]
[394693698,1763904427114,-8001.95523175,8.606e-05,2]
[394693699,1763904427139,-300.0,8.692e-05,2]
[394693700,1763904427426,-500.0,8.693e-05,2]
[394693701,1763904427446,-248.06712044,8.693e-05,2]
[394693702,1763904427469,-500.0,8.693e-05,2]
[394693703,1763904427492,-500.0,8.693e-05,2]
[394693704,1763904427513,-500.0,8.693e-05,2]
[394693705,1763904427534,-500.0,8.693e-05,2]
[394693706,1763904427556,-500.0,8.693e-05,2]
[394693707,1763904427577,-500.0,8.693e-05,2]
[394693708,1763904427598,-500.0,8.693e-05,2]
[394693709,1763904427618,-500.0,8.693e-05,2]
[394693710,1763904427639,-500.0,8.693e-05,2]
[394693711,1763904427659,-500.0,8.693e-05,2]
[394693712,1763904427684,-500.0,8.693e-05,2]
[394693713,1763904427703,-253.88811131,8.693e-05,2]
[394693714,1763904427724,-500.0,8.693e-05,2]
[394693715,1763904427744,-500.0,8.693e-05,2]
[394693716,1763904427766,-500.0,8.693e-05,2]
[394693717,1763904427787,-500.0,8.693e-05,2]
[394693718,1763904427808,-500.0,8.693e-05,2]
[394693719,1763904427833,-36912.59265829,8.694e-05,2]
[394693720,1763904449088,-94364.3568996,8.607e-05,2]
[394693721,1763904449112,-4454.2389294,8.694e-05,2]
[394693754,1763904632099,-256.75655889,8.485e-05,2]
[394693755,1763904632108,-153.07828241,8.485e-05,2]
[394693756,1763904632117,-168.19308826,8.585e-05,2]
[394693757,1763904632126,-300.0,8.672e-05,2]
[394693758,1763904632138,-524.59673942,8.673e-05,2]
[394693759,1763904632147,-495.18708248,8.673e-05,2]
[394693760,1763904632156,-500.0,8.673e-05,2]
[394693761,1763904632165,-500.0,8.673e-05,2]
[394693762,1763904632176,-500.0,8.673e-05,2]
[394693763,1763904632185,-500.0,8.673e-05,2]
[394693764,1763904632194,-500.0,8.673e-05,2]
[394693765,1763904632204,-500.0,8.673e-05,2]
[394693766,1763904632214,-500.0,8.673e-05,2]
[394693767,1763904632223,-500.0,8.673e-05,2]
[394693768,1763904632232,-483.44956204,8.673e-05,2]
[394693769,1763904632242,-500.0,8.673e-05,2]
[394693770,1763904632251,-501.09013963,8.673e-05,2]
[394693771,1763904632259,-500.0,8.673e-05,2]
[394693772,1763904632268,-500.0,8.673e-05,2]
[394693773,1763904632278,-2597.49252787,8.693e-05,2]
[394693774,1763904632289,-2396.8897785,8.693e-05,2]
[394693775,1763904632300,-609.89,8.693e-05,2]
[394693776,1763904632315,-433.51809001,8.693e-05,2]
[394693777,1763904632326,-10079.19393776,8.693e-05,2]
[394693778,1763904632337,-643.77140468,8.693e-05,2]
[394694003,1763904639948,-499.99509108,8.692e-05,2]
[394694024,1763904640146,-0.00490892,8.692e-05,2]
[394694026,1763904640156,-500.0,8.692e-05,2]
[394694028,1763904640165,-448.7422058,8.692e-05,2]
[394694030,1763904640174,-500.0,8.692e-05,2]
[394694032,1763904640183,-33239.24426118,8.693e-05,2]
[394694034,1763904640192,-68282.46206231,8.694e-05,2]
[394694036,1763904640203,-272.71,8.694e-05,2]
[394694039,1763904640215,-3182.9385977,8.694e-05,2]
[394694041,1763904640226,-263.34104819,8.694e-05,2]
[394694043,1763904640244,-7715.95000358,8.694e-05,2]
[394694258,1763904644723,-841.34412303,8.694e-05,2]
[394694259,1763904645096,-18664.000113,8.694e-05,2]
[394694260,1763904645504,-2736.26456,8.694e-05,2]
[394694262,1763904646002,-13331.54751307,8.694e-05,2]
[394694263,1763904646013,-2265.9225486,8.694e-05,2]
[394694264,1763904646024,-3118.17584046,8.694e-05,2]
[394694329,1763904753918,151.763895,0.00012,6]
[394694330,1763904754283,151.763895,0.00012,6]
[394694337,1763905242306,155.97,0.00018581,30]
[394694338,1763905380221,151.763896,0.00012,6]
[394694339,1763905482213,183.354,7.783e-05,2]
[394694342,1763905505365,183.354,7.783e-05,2]
[394694346,1763905527393,183.354,7.783e-05,2]
[394694359,1763905550121,183.354,7.783e-05,2]
[394694363,1763905573467,183.354,7.783e-05,2]
[394694364,1763905637100,-183.354,7.862e-05,2]
[394694365,1763905637122,-153.48672682,7.962e-05,2]
[394694366,1763905637143,-300.0,8.585e-05,2]
[394694367,1763905637164,-500.0,8.586e-05,2]
[394694368,1763905637191,-500.0,8.586e-05,2]
[394694369,1763905637219,-500.0,8.586e-05,2]
[394694370,1763905637241,-500.0,8.586e-05,2]
[394694371,1763905637267,-500.0,8.586e-05,2]
[394694372,1763905637292,-500.0,8.586e-05,2]
[394694373,1763905637314,-500.0,8.586e-05,2]
[394694374,1763905637340,-500.0,8.586e-05,2]
[394694375,1763905637362,-300.0,8.586e-05,2]
[394694376,1763905637391,-500.0,8.586e-05,2]
[394694377,1763905637418,-500.0,8.586e-05,2]
[394694378,1763905637444,-500.0,8.586e-05,2]
[394694379,1763905637693,-500.0,8.586e-05,2]
[394694380,1763905637720,-500.0,8.586e-05,2]
[394694381,1763905637747,-500.0,8.586e-05,2]
[394694382,1763905637773,-500.0,8.586e-05,2]
[394694383,1763905637798,-500.0,8.586e-05,2]
[394694384,1763905637823,-500.0,8.586e-05,2]
[394694385,1763905637849,-500.0,8.586e-05,2]
[394694386,1763905637874,-500.0,8.586e-05,2]
[394694387,1763905637900,-500.0,8.586e-05,2]
[394694388,1763905637924,-500.0,8.586e-05,2]
[394694389,1763905637949,-500.0,8.586e-05,2]
[394694390,1763905637975,-500.0,8.586e-05,2]
[394694391,1763905638001,-288.49843229,8.586e-05,2]
[394694392,1763905638026,-500.0,8.586e-05,2]
[394694393,1763905638050,-500.0,8.586e-05,2]
[394694394,1763905638075,-500.0,8.586e-05,2]
[394694395,1763905638100,-500.0,8.586e-05,2]
[394694396,1763905638125,-500.0,8.586e-05,2]
[394694397,1763905638150,-500.0,8.586e-05,2]
[394694398,1763905638175,-500.0,8.586e-05,2]
[394694399,1763905638201,-500.0,8.586e-05,2]
[394694400,1763905638226,-500.0,8.586e-05,2]
[394694401,1763905638252,-500.0,8.586e-05,2]
[394694402,1763905638280,-500.0,8.586e-05,2]
[394694403,1763905638305,-500.0,8.586e-05,2]
[394694404,1763905638329,-500.0,8.586e-05,2]
[394694405,1763905638355,-500.0,8.586e-05,2]
[394694406,1763905638382,-500.0,8.586e-05,2]
[394694407,1763905638411,-59.69987448,8.586e-05,2]
[394694408,1763905649131,-440.30012552,8.586e-05,2]
[394694409,1763905649163,-500.0,8.586e-05,2]
[394694410,1763905649192,-500.0,8.586e-05,2]
[394694411,1763905649219,-500.0,8.586e-05,2]
[394694412,1763905649245,-500.0,8.586e-05,2]
[394694413,1763905649272,-500.0,8.586e-05,2]
[394694414,1763905649300,-500.0,8.586e-05,2]
[394694415,1763905649329,-500.0,8.586e-05,2]
[394694416,1763905649357,-500.0,8.586e-05,2]
[394694417,1763905649387,-500.0,8.586e-05,2]
[394694418,1763905649414,-500.0,8.586e-05,2]
[394694419,1763905649440,-500.0,8.586e-05,2]
[394694420,1763905649466,-500.0,8.586e-05,2]
[394694421,1763905649493,-500.0,8.586e-05,2]
[394694422,1763905649522,-500.0,8.586e-05,2]
[394694423,1763905649552,-500.0,8.586e-05,2]
[394694424,1763905649583,-500.0,8.586e-05,2]
[394694425,1763905649612,-500.0,8.586e-05,2]
[394694426,1763905649640,-196.4858906,8.586e-05,2]
[394694427,1763905649668,-500.0,8.586e-05,2]
[394694428,1763905649699,-500.0,8.586e-05,2]
[394694429,1763905649724,-500.0,8.586e-05,2]
[394694430,1763905649751,-249.99999999,8.586e-05,2]
[394694431,1763905649777,-500.0,8.586e-05,2]
[394694432,1763905649798,-300.0,8.586e-05,2]
[394694433,1763905649818,-1200.0,8.586e-05,2]
[394694434,1763905649839,-1229.58323452,8.587e-05,2]
[394694435,1763905649861,-500.0,8.587e-05,2]
[394694436,1763905649884,-173.64698431,8.587e-05,2]
[394694437,1763905649906,-500.0,8.587e-05,2]
[394694438,1763905649927,-500.0,8.587e-05,2]
[394694439,1763905649950,-639.00024919,8.587e-05,2]
[394694440,1763905649972,-500.0,8.587e-05,2]
[394694441,1763905649993,-500.0,8.587e-05,2]
[394694442,1763905650017,-500.0,8.587e-05,2]
[394694443,1763905650039,-500.0,8.587e-05,2]
[394694444,1763905650064,-500.0,8.587e-05,2]
[394694445,1763905650086,-500.0,8.587e-05,2]
[394694446,1763905650107,-250.0,8.587e-05,2]
[394694447,1763905650132,-62719.42787887,8.588e-05,2]
[394694448,1763905653138,-569.38225706,8.5e-05,2]
[394694449,1763905653167,-1394.87953911,8.588e-05,2]
[394694474,1763905832044,-300.0,8.587e-05,2]
[394694475,1763905832054,-689.13045994,8.588e-05,2]
[394694517,1763905838022,-752.73625706,8.588e-05,2]
[394694559,1763905838579,-9155.382707,8.588e-05,2]
[394694721,1763905840126,-23817.0614023,8.588e-05,2]
[394695113,1763905844540,-17093.16535176,8.588e-05,2]
[394695290,1763905846573,-2253.89322595,8.588e-05,2]
[394695292,1763905846585,-17484.16130682,8.588e-05,2]
[394702774,1763905955933,164.57678,0.00012,6]
[394702775,1763905956344,164.57678,0.00012,6]
[394702798,1763906206015,1991.43,0.0002,30]
[394702807,1763906555136,164.576781,0.00012,6]
[394702808,1763906712010,168.19308826,7.765e-05,2]
[394702809,1763906720340,168.19308826,7.765e-05,2]
[394702810,1763906729405,168.19308826,7.765e-05,2]
[394702811,1763906745277,162.81541735,7.726e-05,2]
[394702812,1763906753121,162.81541735,7.726e-05,2]
[394702813,1763906768621,162.81541735,7.726e-05,2]
[394702814,1763906776447,162.81541735,7.726e-05,2]
[394702815,1763906791388,162.81541735,7.726e-05,2]
[394702816,1763906799146,157.7231653,7.726e-05,2]
[394702817,1763906814135,162.81541735,7.726e-05,2]
[394702818,1763906835116,-162.81541735,7.804e-05,2]
[394702819,1763906835137,-162.81541735,7.883e-05,2]
[394702820,1763906835157,-10.4716582,8.317e-05,2]
[394702821,1763906836566,162.81541735,7.726e-05,2]
[394702859,1763906960115,-172.8823418,8.152e-05,2]
[394702860,1763906960134,-159.559109,8.193e-05,2]
[394702861,1763906960154,-172.8823418,8.234e-05,2]
[394702862,1763906960173,-172.8823418,8.317e-05,2]
[394702863,1763906960191,-300.0,8.48e-05,2]
[394702864,1763906960209,-50000.0,8.481e-05,2]
[394702865,1763906960233,-500.0,8.481e-05,2]
[394702866,1763906960256,-500.0,8.481e-05,2]
[394702867,1763906960278,-500.0,8.481e-05,2]
[394702868,1763906960300,-500.0,8.481e-05,2]
[394702869,1763906960323,-500.0,8.481e-05,2]
[394702870,1763906960348,-500.0,8.481e-05,2]
[394702871,1763906960525,-500.0,8.481e-05,2]
[394702872,1763906960552,-500.0,8.481e-05,2]
[394702873,1763906960576,-500.0,8.481e-05,2]
[394702874,1763906960599,-500.0,8.481e-05,2]
[394702875,1763906960621,-500.0,8.481e-05,2]
[394702876,1763906960644,-500.0,8.481e-05,2]
[394702877,1763906960668,-500.0,8.481e-05,2]
[394702878,1763906960691,-523.46365025,8.481e-05,2]
[394702879,1763906960715,-500.0,8.481e-05,2]
[394702880,1763906960737,-500.0,8.481e-05,2]
[394702881,1763906960760,-500.0,8.481e-05,2]
[394702882,1763906960782,-500.0,8.481e-05,2]
[394702883,1763906960804,-500.0,8.481e-05,2]
[394702884,1763906960827,-500.0,8.481e-05,2]
[394702885,1763906960850,-500.0,8.481e-05,2]
[394702886,1763906960874,-500.0,8.481e-05,2]
[394702887,1763906960898,-500.0,8.481e-05,2]
[394702888,1763906960924,-500.0,8.481e-05,2]
[394702889,1763906960948,-500.0,8.481e-05,2]
[394702890,1763906960972,-500.0,8.481e-05,2]
[394702891,1763906960995,-500.0,8.481e-05,2]
[394702892,1763906961016,-500.0,8.481e-05,2]
[394702893,1763906961039,-500.0,8.481e-05,2]
[394702894,1763906961062,-500.0,8.481e-05,2]
[394702895,1763906961085,-500.0,8.481e-05,2]
[394702896,1763906961106,-500.0,8.481e-05,2]
[394702897,1763906961129,-511.17285224,8.481e-05,2]
[394702898,1763906961152,-500.0,8.481e-05,2]
[394702899,1763906961174,-500.0,8.481e-05,2]
[394702900,1763906961197,-500.0,8.481e-05,2]
[394702901,1763906961219,-500.0,8.481e-05,2]
[394702902,1763906961241,-500.0,8.481e-05,2]
[394702903,1763906961265,-500.0,8.481e-05,2]
[394702904,1763906961289,-500.0,8.481e-05,2]
[394702905,1763906961312,-500.0,8.481e-05,2]
[394702906,1763906961336,-500.0,8.481e-05,2]
[394702907,1763906961359,-500.0,8.481e-05,2]
[394702908,1763906961382,-500.0,8.481e-05,2]
[394702909,1763906961405,-500.0,8.481e-05,2]
[394702910,1763906961427,-500.0,8.481e-05,2]
[394702911,1763906961448,-500.0,8.481e-05,2]
[394702912,1763906961471,-500.0,8.481e-05,2]
[394702913,1763906961494,-500.0,8.481e-05,2]
[394702914,1763906961516,-500.0,8.481e-05,2]
[394702915,1763906961540,-500.0,8.481e-05,2]
[394702916,1763906961563,-500.0,8.481e-05,2]
[394702917,1763906961585,-500.0,8.481e-05,2]
[394702918,1763906961608,-500.0,8.481e-05,2]
[394702919,1763906961631,-500.0,8.481e-05,2]
[394702920,1763906961657,-500.0,8.481e-05,2]
[394702921,1763906961691,-500.0,8.481e-05,2]
[394702922,1763906961727,-500.0,8.481e-05,2]
[394702923,1763906961766,-500.0,8.481e-05,2]
[394702924,1763906961804,-500.0,8.481e-05,2]
[394702925,1763906961846,-500.0,8.481e-05,2]
[394702926,1763906961880,-500.0,8.481e-05,2]
[394702927,1763906961917,-500.0,8.481e-05,2]
[394702928,1763906961956,-500.0,8.481e-05,2]
[394702929,1763906961991,-500.0,8.481e-05,2]
[394702930,1763906962028,-500.0,8.481e-05,2]
[394702931,1763906962062,-500.0,8.481e-05,2]
[394702932,1763906962095,-451.11728523,8.481e-05,2]
[394702933,1763906962130,-500.0,8.481e-05,2]
[394702934,1763906962167,-500.0,8.481e-05,2]
[394702935,1763906962201,-500.0,8.481e-05,2]
[394702936,1763906962231,-300.0,8.482e-05,2]
[394702937,1763906962261,-1200.0,8.482e-05,2]
[394702938,1763906962292,-300.0,8.482e-05,2]
[394702939,1763906962323,-392.02242397,8.482e-05,2]
[394702940,1763906962352,-506.25942948,8.483e-05,2]
[394702941,1763906962384,-500.0,8.483e-05,2]
[394702942,1763906962416,-500.0,8.483e-05,2]
[394702943,1763906962445,-500.0,8.483e-05,2]
[394702944,1763906962475,-500.0,8.483e-05,2]
[394702945,1763906962505,-500.0,8.483e-05,2]
[394702946,1763906962533,-500.0,8.483e-05,2]
[394702947,1763906962563,-500.0,8.483e-05,2]
[394702948,1763906962594,-500.0,8.483e-05,2]
[394702949,1763906962623,-500.0,8.483e-05,2]
[394702950,1763906962654,-250.71270861,8.483e-05,2]
[394702951,1763906962684,-500.0,8.483e-05,2]
[394702952,1763906962715,-543.9546393,8.483e-05,2]
[394702953,1763906962747,-543.9546393,8.483e-05,2]
[394702954,1763906962777,-543.9546393,8.483e-05,2]
[394702955,1763906962807,-543.9546393,8.483e-05,2]
[394702956,1763906962839,-543.9546393,8.483e-05,2]
[394702957,1763906962869,-543.9546393,8.483e-05,2]
[394702958,1763906962901,-543.9546393,8.483e-05,2]
[394702959,1763906962934,-543.9546393,8.483e-05,2]
[394702960,1763906962966,-636.8802235,8.483e-05,2]
[394702961,1763906962998,-636.8802235,8.483e-05,2]
[394702962,1763906963029,-636.8802235,8.483e-05,2]
[394702963,1763906963061,-636.8802235,8.483e-05,2]
[394702964,1763906963090,-500.0,8.485e-05,2]
[394702965,1763906963114,-500.0,8.485e-05,2]
[394702966,1763906963136,-500.0,8.485e-05,2]
[394702967,1763906963159,-500.0,8.485e-05,2]